Cogmind - Beta 15 @@@ ROGUE MODE // 2025.08.17 @ 05:30:54 Player: KeKe Result: Destroyed by Y-54 Guardian with Flak Gun Performance ------------- Evolutions (3) 1500 Regions Visited (6) 1200 Robots Destroyed (32) 160 Value Destroyed (864) 864 Prototype IDs (4) 80 Alien Tech Used (0) 0 Bonus (200) 200 TOTAL SCORE: 4004 Bonus ------- Entered Garrisons 200 Cogmind --------- Core Integrity 0/700 Matter 300/300 Energy 98/100 System Corruption 0% Temperature Cool (18) Movement Core (50) Location -7/Garrison Parts ------- > --- POWER (1) -------- (None) > --- PROPULSION (6) --- (None) > --- UTILITY (4) ------ System Shield > --- WEAPON (2) ------- (None) > --- INVENTORY (5) ---- Improved Signal Interpreter System Shield Peak State ------------ > --- POWER ------------ Light Ion Engine > --- PROPULSION ------- Flight Unit Flight Unit Flight Unit Flight Unit Flight Unit Improved VTOL Module > --- UTILITY ---------- System Shield System Shield > --- WEAPON ----------- Enhanced Autogun Enhanced Autogun > --- INVENTORY -------- Hacking Suite System Shield System Shield Mini Grenade Launcher [Rating: 25] Favorites ----------- Power Ion Engine Engine Ion Engine Propulsion Flight Unit Leg Aluminum Leg Flight Unit Flight Unit Utility System Shield Device Sensor Array Storage Small Storage Unit Processor Signal Interpreter Hackware System Shield Protection Light Armor Plating Weapon Mace Ballistic Gun Enhanced Autogun Launcher Mini Grenade Launcher Impact Weapon Mace Slashing Weapon Mining Claw Build | -11 -10 -9 -9 -8 -7 -7 ------- Run | Yrd Mat Mat Min Mat Fac Gar Slots Evolved 6 | . . 2 . 2 2 . Power . | . . . . . . . Propulsion 4 | . . 2 . 2 . . Utility 2 | . . . . . 2 . Weapon . | . . . . . . . Parts Attached 34 | . 7 8 1 12 4 2 Power 2 | . . . 1 1 . . Engine 2 | . . . 1 1 . . Core . | . . . . . . . Reactor . | . . . . . . . Propulsion 19 | . 2 6 . 7 2 2 Treads . | . . . . . . . Leg 1 | . . . . 1 . . Wheel . | . . . . . . . Hover . | . . . . . . . Flight 18 | . 2 6 . 6 2 2 Utility 8 | . 3 2 . 1 2 . Device 1 | . 1 . . . . . Storage . | . . . . . . . Processor 1 | . 1 . . . . . Hackware 4 | . . 1 . 1 2 . Protection 2 | . 1 1 . . . . Artifact . | . . . . . . . Weapon 5 | . 2 . . 3 . . Energy Gun . | . . . . . . . Energy Cannon . | . . . . . . . Ballistic Gun 2 | . . . . 2 . . Ballistic Cannon . | . . . . . . . Launcher 1 | . . . . 1 . . Special Weapon . | . . . . . . . Impact Weapon 1 | . 1 . . . . . Slashing Weapon 1 | . 1 . . . . . Piercing Weapon . | . . . . . . . Special Melee Weapon . | . . . . . . . Unidentified Prototypes 4 | . . 1 . 2 1 . Parts Lost 28 | . 1 5 2 10 . 10 Power 2 | . . 1 . 1 . . Propulsion 17 | . . 3 1 7 . 6 Utility 6 | . 1 1 1 . . 3 Weapon 3 | . . . . 2 . 1 Highest Loss Streak 10 | . 1 4 2 6 . 10 To Critical Strikes . | . . . . . . . Average Backups 4 | 6 5 4 4 4 2 2 Power . | 1 . . . . . . Propulsion 1 | 4 3 . . . . . Utility 2 | . 1 3 4 3 2 2 Weapon . | 1 . . . . . . Tool/Special . | . . . . . . . Unused Backups 17 | . 13 1 . 1 . 2 Power 3 | . 2 1 . . . . Propulsion 6 | . 6 . . . . . Utility 5 | . 2 . . 1 . 2 Weapon 3 | . 3 . . . . . Tool/Special . | . . . . . . . Average Slot Usage (%) 61 | . 74 72 54 55 61 53 Engine 5 | . 14 6 . 3 . . Leg 1 | . 4 . . . . . Flight 25 | . 23 39 26 24 25 20 Device 1 | . 8 . . . . . Processor 2 | . 9 2 . . . . Hackware 11 | . . 8 11 15 27 27 Protection 2 | . 1 4 5 . . . Ballistic Gun 3 | . 5 . . 8 . . Launcher 1 | . . . . 3 7 4 Impact Weapon 4 | . 2 11 11 . . . Peak Build Rating 25 | 6 7 15 13 25 22 22 Average Rating 11 | 6 5 12 11 15 19 17 On Entrance 10 | 6 6 6 13 11 11 22 Naked Turns . | . . . . . . . Heaviest Build 14 | 14 14 10 5 9 1 1 Greatest Support 25 | 20 20 17 9 25 10 10 Greatest Overweight (x) 2 | . 2 . . . . . Average Overweight (x) . | . . . . . . . Largest Inventory Capacity 8 | 8 8 5 5 5 5 5 Average Capacity 5 | 8 5 5 5 5 5 5 Most Carried 8 | 7 8 5 5 5 3 4 Average Carried 4 | 6 5 4 4 4 1 2 Final Capacity 8 | 8 5 5 5 5 5 5 Final Carried 7 | 7 5 4 5 4 2 2 Class Distribution -------------------- 64% | Mutant 18% | Hacker-Mutant 11% | Scavenger-Sprinter 5% | Sprinter Dominant Class ---------------- Mutant | -10/Materials Sprinter | -9/Materials Mutant | -9/Mines Scavenger-Sprinter | -8/Materials Hacker-Mutant | -7/Factory Hacker-Mutant | -7/Garrison Resources | -11 -10 -9 -9 -8 -7 -7 ----------- Run | Yrd Mat Mat Min Mat Fac Gar Matter Collected 955 | 224 56 46 64 523 . 42 Remotely . | . . . . . . . Salvage Created 967 | 122 . 27 . 818 . . Parts 63 | 3 . . . 60 . . Haulers Intercepted 1 | . . . . 1 . . Recyclers Shooed 2 | 1 . . . 1 . . Parts Field Recycled . | . . . . . . . Retrieved Matter . | . . . . . . . Parts Self-Destructed . | . . . . . . . Prevented . | . . . . . . . Kills | -11 -10 -9 -9 -8 -7 -7 ------- Run | Yrd Mat Mat Min Mat Fac Gar Combat Hostiles Destroyed 24 | . . . . 24 . . Guns 15 | . . . . 15 . . AOE 9 | . . . . 9 . . Classes Destroyed 8 | 2 . 1 . 5 . . Worker 2 | . . 1 . 1 . . Builder 2 | . . . . 2 . . Tunneler 1 | 1 . . . . . . Hauler 1 | . . . . 1 . . Recycler 2 | 1 . . . 1 . . Swarmer 10 | . . . . 10 . . Grunt 9 | . . . . 9 . . Sentry 5 | . . . . 5 . . Best Kill Streak 11 | 2 . 1 . 11 . . Combat Bots Only 11 | . . . . 11 . . Max Kills in Single Turn 2 | 1 . 1 . 2 . . Gunslinging . | . . . . . . . Exploded 2 | . . . . 2 . . Melee . | . . . . . . . Uniques/NPCs Destroyed . | . . . . . . . Combat | -11 -10 -9 -9 -8 -7 -7 -------- Run | Yrd Mat Mat Min Mat Fac Gar Hostile Shots Fired 441 | . 46 101 32 139 . 123 Missed 188 | . 23 44 15 56 . 50 Hits 253 | . 23 57 17 83 . 73 Melee 1 | . . . 1 . . . Projectile 252 | . 23 57 16 83 . 73 Critical Strikes 6 | . . 1 1 4 . . Damage Taken 3058 | . 223 548 262 1079 . 946 Core 1619 | . 109 222 162 422 . 704 Absorbed by Shields 96 | . . . . . . 96 Core Remaining (%) 45 | 100 56 . 4 23 . . Volleys Fired 79 | 4 1 . . 74 . . Largest 2 | 2 2 . . 2 . . Hottest 50 | 40 40 . . 50 . . Shots Fired 100 | 8 2 . . 90 . . Gun 84 | 8 2 . . 74 . . Cannon . | . . . . . . . Launcher 16 | . . . . 16 . . Special . | . . . . . . . Kinetic 84 | 8 2 . . 74 . . Thermal . | . . . . . . . Explosive 16 | . . . . 16 . . Electromagnetic . | . . . . . . . Robot Hit Streak 7 | 4 2 . . 7 . . Robot Miss Streak 4 | 1 1 . . 4 . . Penetration Max . | . . . . . . . Secondary Targets 3 | . . . . 3 . . Max Gunslinging Chain 1 | . . . . 1 . . Shots Hit Robots 68 | 5 1 2 . 60 . . Core Hits 50 | 3 1 . . 46 . . Critical Kills 1 | . . . . 1 . . Critical Parts Destroyed 1 | . . . . 1 . . Critical Strikes 2 | . . . . 2 . . Destroy 2 | . . . . 2 . . Melee Attacks 6 | . 3 3 . . . . Impact 6 | . 3 3 . . . . Slashing . | . . . . . . . Piercing . | . . . . . . . Sneak Attacks 1 | . . 1 . . . . Combat Hostiles . | . . . . . . . Follow-up Attacks . | . . . . . . . Damage Inflicted 1839 | 59 12 120 . 1648 . . Guns 935 | 59 12 . . 864 . . Cannons . | . . . . . . . Explosions 784 | . . . . 784 . . Melee 120 | . . 120 . . . . Ramming . | . . . . . . . Kinetic 935 | 59 12 . . 864 . . Thermal . | . . . . . . . Explosive 784 | . . . . 784 . . Electromagnetic . | . . . . . . . Impact 120 | . . 120 . . . . Slashing . | . . . . . . . Piercing . | . . . . . . . Highest Corruption 5 | . . . 5 2 . . Average Corruption 3 | . . . 5 1 . . Corruption Purged . | . . . . . . . Corruption Blocked . | . . . . . . . Effects 5 | . . . 3 2 . . Message Errors 4 | . . . 2 2 . . Matter Fused 1 | . . . 1 . . . Overload Shots . | . . . . . . . Overflow Damage 46 | . . 46 . . . . Projectiles . | . . . . . . . Explosions . | . . . . . . . Melee 46 | . . 46 . . . . Knockbacks 2 | . . 2 . . . . Impact 2 | . . 2 . . . . Kinetic . | . . . . . . . Secondary . | . . . . . . . Self-Inflicted Damage 62 | . . . . 62 . . Shots 3 | . . . . 3 . . Rammed . | . . . . . . . Targets Rammed . | . . . . . . . Kicked . | . . . . . . . Crushed . | . . . . . . . Highest Temperature 123 | . 4 18 . 123 . . Average Temperature 44 | . 4 9 . 48 . . Received Heat Transfer 669 | . 57 96 54 387 . 75 Siege Activations . | . . . . . . . Martial Activations . | . . . . . . . Shielding Activations . | . . . . . . . Robots Disrupted . | . . . . . . . Combat Hostiles . | . . . . . . . Robots Corrupted 1 | . . 1 . . . . Combat Hostiles . | . . . . . . . Parts Fried 1 | . . 1 . . . . Impact Corruptions 2 | . . 2 . . . . Robots Melted . | . . . . . . . Combat Hostiles . | . . . . . . . Parts Melted . | . . . . . . . Heat Transferred . | . . . . . . . Parts Sabotaged . | . . . . . . . Parts Stolen . | . . . . . . . Parts Stripped . | . . . . . . . Power Chain Reactions . | . . . . . . . Alert | -11 -10 -9 -9 -8 -7 -7 ------- Run | Yrd Mat Mat Min Mat Fac Gar Maximum Alert Level 1 | . . 1 . 1 . . Low Security (%) 84 | 100 100 82 100 50 100 100 Level 1 15 | . . 17 . 49 . . Level 2 . | . . . . . . . Level 3 . | . . . . . . . Level 4 . | . . . . . . . Level 5 . | . . . . . . . High Security . | . . . . . . . Max Security . | . . . . . . . Peak Influence 395 | 10 114 275 45 395 62 160 Initial 60 | . . 40 5 . 60 36 Average 85 | 2 34 93 12 195 55 86 Influence Increases 1664 | 10 198 345 100 825 12 174 Destroy 0b10 Robot/C 480 | . . . . 480 . . Destroy 0b10 Robot/NC 40 | 10 . 5 . 25 . . Destroy Leader 102 | . . . . 102 . . Trap Triggered on 0b10 10 | . . . 10 . . . Successful Hack 87 | . 25 10 . 16 12 24 Select Force Hacks 50 | . 50 . . . . . Disable Machine 30 | . . . . 30 . . Destroy Structure 100 | . 3 . . 97 . . Partial Spotted 90 | . 45 30 . 15 . . Lose Combat Pursuer 675 | . 75 300 90 60 . 150 Influence Decreases 1554 | 10 100 428 115 690 95 116 Entered New Map 159 | . . 58 10 . 75 16 Time Decay 415 | 10 90 50 85 160 20 . Lost Part 250 | . 10 40 20 80 . 100 Purge Threat 730 | . . 280 . 450 . . Squads Dispatched 7 | . 3 1 . 3 . . Investigation 2 | . 2 . . . . . Extermination . | . . . . . . . Reinforcement 5 | . 1 1 . 3 . . Assault . | . . . . . . . Garrison . | . . . . . . . Intercept . | . . . . . . . Searches Triggered . | . . . . . . . Construction Impeded . | . . . . . . . Haulers Reinforced . | . . . . . . . Active Scanning Responses . | . . . . . . . Cargo Convoy Interrupts . | . . . . . . . Stealth | -11 -10 -9 -9 -8 -7 -7 --------- Run | Yrd Mat Mat Min Mat Fac Gar Distress Signals 7 | . . 2 . 5 . . Communications Jammed . | . . . . . . . Distress Signals . | . . . . . . . Times Spotted 149 | . 25 39 37 31 . 17 Peak Tracking Total 27 | . 16 15 27 13 . 14 Tactical Retreats 16 | . 2 5 5 2 . 2 Traps | -11 -10 -9 -9 -8 -7 -7 ------- Run | Yrd Mat Mat Min Mat Fac Gar Traps Triggered 6 | . 1 . . 2 . 3 Indirectly . | . . . . . . . Trap Hack Attempts . | . . . . . . . Triggered . | . . . . . . . Disarmed . | . . . . . . . Reprogrammed . | . . . . . . . Reused 2 | . . . 2 . . . Traps Extracted . | . . . . . . . Installed 4 | . . . 4 . . . Triggered 1 | . . . 1 . . . Most Traps Carried 1 | . . . 1 . . . Machines | -11 -10 -9 -9 -8 -7 -7 ---------- Run | Yrd Mat Mat Min Mat Fac Gar Machines Disabled 2 | . . . . 2 . . Max in Single Turn 1 | . . . . 1 . . Machines Repaired . | . . . . . . . Machines Dismantled . | . . . . . . . Machines Sabotaged 1 | . 1 . . . . . Overloaded Fab Kills . | . . . . . . . Hacking | -11 -10 -9 -9 -8 -7 -7 --------- Run | Yrd Mat Mat Min Mat Fac Gar Machines Accessed 16 | . 5 3 . 4 2 2 Terminals 15 | . 5 3 . 4 1 2 Fabricators . | . . . . . . . Repair Stations . | . . . . . . . Recycling Units . | . . . . . . . Scanalyzers . | . . . . . . . Garrison Access 1 | . . . . . 1 . Total Hacks 59 | . 18 13 . 18 5 5 Successful 27 | . 9 6 . 8 2 2 Failed 32 | . 9 7 . 10 3 3 Catastrophic 6 | . 3 . . 1 1 1 Database Lockouts . | . . . . . . . Manual 52 | . 17 14 . 17 4 . Terminals 58 | . 18 13 . 18 4 5 Fabricators . | . . . . . . . Repair Stations . | . . . . . . . Recycling Units . | . . . . . . . Scanalyzers . | . . . . . . . Garrison Access 1 | . . . . . 1 . Terminal Hacks 12 | . 3 3 . 4 . 2 Emergency Access Points 2 | . 1 . . . . 1 Terminal Index 3 | . 1 1 . 1 . . Unreport Threat 5 | . . 2 . 3 . . Locate Traps 1 | . 1 . . . . . Patrol Navigation 1 | . . . . . . 1 Fabricator Hacks . | . . . . . . . Repair Station Hacks . | . . . . . . . Recycling Unit Hacks . | . . . . . . . Scanalyzer . | . . . . . . . Garrison Access Hacks 1 | . . . . . 1 . Unlock Access 1 | . . . . . 1 . Unauthorized Hacks 14 | . 6 3 . 4 1 . Terminals 14 | . 6 3 . 4 1 . Botnet 13 | . 5 3 . 4 1 . Sabotage 1 | . 1 . . . . . Fabricators . | . . . . . . . Repair Stations . | . . . . . . . Recycling Units . | . . . . . . . Scanalyzers . | . . . . . . . Garrison Access . | . . . . . . . Data Cores Recovered . | . . . . . . . Used . | . . . . . . . Hacking Detections 13 | . 3 3 . 4 2 1 Full Trace Events 3 | . 3 . . . . . Feedback Events . | . . . . . . . Feedback Blocked . | . . . . . . . Robot Schematics Acquired . | . . . . . . . Robots Built . | . . . . . . . Authchips . | . . . . . . . Time . | . . . . . . . Total Robot Build Rating . | . . . . . . . Part Schematics Acquired . | . . . . . . . Parts Built . | . . . . . . . Authchips . | . . . . . . . Time . | . . . . . . . Total Part Build Rating . | . . . . . . . Parts Repaired . | . . . . . . . Time . | . . . . . . . Parts Recycled . | . . . . . . . Recycled Matter . | . . . . . . . Retrieved Matter . | . . . . . . . Retrieved Components . | . . . . . . . Parts Scanalyzed . | . . . . . . . Part Schematics Acquired . | . . . . . . . Parts Damaged . | . . . . . . . Bothacking | -11 -10 -9 -9 -8 -7 -7 ------------ Run | Yrd Mat Mat Min Mat Fac Gar Used RIF Installer . | . . . . . . . Robots Hacked . | . . . . . . . Non-combat . | . . . . . . . Combat . | . . . . . . . Robot Hacks Applied . | . . . . . . . Relay Couplers Released . | . . . . . . . Fabnet Peak Effective % . | . . . . . . . Robots Rewired . | . . . . . . . Allies Hacked . | . . . . . . . Hacks Repelled . | . . . . . . . Allies | -11 -10 -9 -9 -8 -7 -7 -------- Run | Yrd Mat Mat Min Mat Fac Gar Total Allies . | . . . . . . . Largest Group . | . . . . . . . Highest-Rated Group . | . . . . . . . Highest-Rated Ally . | . . . . . . . Total Orders . | . . . . . . . Ally Attacks . | . . . . . . . Total Damage . | . . . . . . . Kills . | . . . . . . . Allies Corrupted . | . . . . . . . Allies Melted . | . . . . . . . Intel | -11 -10 -9 -9 -8 -7 -7 ------- Run | Yrd Mat Mat Min Mat Fac Gar Active Infowar (turns) 177 | . 177 . . . . . Sensors 177 | . 177 . . . . . Robot Analysis Total . | . . . . . . . Derelict Logs Recovered 2 | . . . 2 . . . Drone Launches . | . . . . . . . Drone Recoveries . | . . . . . . . Exploration | -11 -10 -9 -9 -8 -7 -7 ------------- Run | Yrd Mat Mat Min Mat Fac Gar Turns Passed 1245 | 45 275 126 305 361 44 89 Spaces Moved 2229 | 27 423 301 767 427 109 175 Core 49 | . . . . 39 . 10 Treads . | . . . . . . . Legs 73 | 27 25 . . 21 . . Wheels . | . . . . . . . Hover . | . . . . . . . Flight 2107 | . 398 301 767 367 109 165 Fastest Speed 24 | 120 37 29 37 24 34 32 Average Speed 38 | 120 42 33 37 38 34 35 Slowest Speed 200 | 120 200 37 37 120 37 50 Overloaded Moves . | . . . . . . . Propulsion Burnouts . | . . . . . . . Robots Hopped 23 | . 5 1 11 4 . 2 Potential Cave-ins . | . . . . . . . Cave-ins Triggered . | . . . . . . . Exploration Rate (%) 42 | 4 77 37 97 48 3 34 Regions Visited 6 Branch Regions 1 Pre-discovered Areas . | . . . . . . . Known Exits Taken 3 | . 1 . . 1 1 . Unknown Exits Taken 3 | 1 . 1 1 . . . Scrap Searched 3 | . . . 3 . . . Spaces Dug 3 | . 3 . . . . . Terrain Destroyed 116 | . 3 . . 113 . . Melee 3 | . 3 . . . . . Projectile . | . . . . . . . AOE 113 | . . . . 113 . . Terrain Rammed . | . . . . . . . Walls Destroyed . | . . . . . . . Machines Disabled . | . . . . . . . Actions | -11 -10 -9 -9 -8 -7 -7 --------- Run | Yrd Mat Mat Min Mat Fac Gar Total 2501 | 31 508 316 776 557 113 200 Wait 106 | . 57 . 13 36 . . Move 2179 | 26 412 298 746 419 108 170 Hop 20 | . 5 1 9 3 . 2 Pick Up 22 | 1 8 3 2 5 1 2 Fast Attach 20 | . 5 5 1 8 1 . Attach 17 | . 3 3 . 6 3 2 Detach 2 | . . . . 2 . . Swap 2 | . 1 1 . . . . Drop 20 | . 13 2 1 4 . . Fire 79 | 4 1 . . 74 . . Melee 6 | . 3 3 . . . . Ram . | . . . . . . . Kick . | . . . . . . . Crush . | . . . . . . . Escape Stasis 24 | . . . . . . 24 Rewire . | . . . . . . . Trap 4 | . . . 4 . . . Miscellaneous . | . . . . . . . Route ------- -11/Scrapyard -10/Materials (discovered 2 exits: *Mat / *Min) -9/Materials (discovered 3 exits: *Mat / [*Min x2]) -9/Mines (discovered 2 exits: *Mat x2) -8/Materials (discovered 3 exits: *Fac x3) -7/Factory -7/Garrison (discovered 1 exit: [*Fac]) History --------- Turn | Location | Event 1 | -11/Scrapyard | Discovered new exit (range 2) 46 | -11/Scrapyard | Entered Materials 231 | -10/Materials | Discovered new exit (range 16) 247 | -10/Materials | Identified exit to Mines 316 | -10/Materials | Discovered new exit (range 16) 318 | -10/Materials | Build established: Mutant 321 | -10/Materials | Identified exit to Materials 321 | -10/Materials | Entered another Materials area 321 | -9/Materials | Evolved 2 slots: Propulsion x2 366 | -9/Materials | Discovered new exit (range 11) 380 | -9/Materials | Discovered new exit (range 5) 429 | -9/Materials | Core integrity fell below 50% 445 | -9/Materials | Discovered new exit (range 7) 447 | -9/Materials | Entered Mines 468 | -9/Mines | Lost 4 parts (1p2n1u) 507 | -9/Mines | Learned location of 1 exit from Materials 518 | -9/Mines | Learned 4 Materials zone layouts 522 | -9/Mines | Discovered new exit (range 5) 595 | -9/Mines | Assembled infested the area 597 | -9/Mines | Core integrity fell below 20% 602 | -9/Mines | Found a hidden stash of uninstalled traps 627 | -9/Mines | Discovered new exit (range 5) 752 | -9/Mines | Entered Materials 752 | -8/Materials | Evolved 2 slots: Propulsion x2 753 | -8/Materials | Identified exit to Factory 948 | -8/Materials | Destroyed 7 combat bots 1023 | -8/Materials | Core integrity fell below 50% 1104 | -8/Materials | Discovered exit to Factory (range 16) 1113 | -8/Materials | Entered Factory 1113 | -7/Factory | Evolved 2 slots: Utility x2 1117 | -7/Factory | Destroyed 11 combat bots 1125 | -7/Factory | Lost 6 parts (1p3n2w) 1154 | -7/Factory | Identified exit to Garrison 1157 | -7/Factory | Entered Garrison 1179 | -7/Garrison | Triggered checkpoint 1207 | -7/Garrison | Triggered checkpoint 1213 | -7/Garrison | Discovered new exit (range 10) 1216 | -7/Garrison | Attempted to access garrison exit controls, blocked by remote lockdown 1227 | -7/Garrison | Core integrity fell below 50% 1243 | -7/Garrison | Core integrity fell below 20% 1246 | -7/Garrison | Destroyed by Y-54 Guardian with Flak Gun Last Messages --------------- 01233_ Hacking Suite destroyed. 01234_ Field strength at 43. 01235_ Field strength at 22. 01235_ VTOL Module destroyed. 01236_ Field strength at 8. 01236_ VTOL Module destroyed. 01236_ Stasis field depleted. 01237_ Triggered Stasis Trap. 01237_ A bubble of rippling energy engulfs the area. 01237_ Field strength at 94. 01237_ Field strength at 88. 01238_ Field strength at 74. 01239_ Field strength at 60. 01240_ Field strength at 54. 01241_ Field strength at 40. 01242_ Field strength at 34. 01243_ Field strength at 11. 01244_ Field strength at 1. 01244_ Stasis field depleted. 01244_ System Shield destroyed. Map ----- +----------------------------------------------------+ | ??????????????????????????+ "#???????????????? | | ??????????????????????????# ######???????????????? | | ??????????????????????????# #????????????????????? | | ??????????????????????????# #???#####????????????? | | ??????????????????????????# #???# #????????????? | | ????????????????????????### ##### #????????????? | | ????????????????????????# #????????????? | | ????????????????????????+ #????????????? | | ????????????????????????# ##########????????????? | | ????????+???????????????# #?????????????????????? | | ????????????????????????# #?????????????????????? | | ??##+###""""###+##??????# #?????????????????????? | | ??# ######## #?????????????????????? | | ?? #?????????????????????? | | ?? #?????????????????????? | | ??? ???# ## #########+#?????????????????????? | | ??# ## ## #???????????????????????????????? | | +?" "???????????????????????????????? | | ??" "???????????????????????????????? | | ??" "???????????????????????????????? | | ??" "???????????????????????????????? | | ??# ## ## #???????????????????????????????? | | ??? ???# ## ############????????????????????? | | ??# #????????????????????? | | ??+ #????????????????????? | | ??# YY@ +????????????????????? | | ??## ##""""##++####+#### #????????????????????? | | ????????????????????????# #????????????????????? | | ????????????????????????# ^ #????????????????????? | | ???+????????????????????# #???#????????????????? | | ????????????????????????# ###+##????#####??????? | | ????????????????????????# ## #????""""#??????? | | ????????????????????????# ## ##### ###?????? | | ????????????????????????+ #?????? | | ????????????????????????+ #?????? | | ????????????????????????# s ###T############?????? | | ????????????????????????# ############?????????? | | ????????????????????????# g ##""""""""""#????????? | | ????????????????????????# ##"!!!!!!"""#????????? | | ????????????????????????# ## ""#????????? | | ????????????????????????# ## !"#????????? | | ????????????????????????# ## !"#????????? | | ????????????????????????# !"#????????? | | ????????????????????????#[% !"#????????? | | ????????????????????????# = ## ""#????????? | | ????????????????????????# ##"!!!!!!"""#????????? | | ????????????????????????# ##""""""""""?????????? | | ????????????????????????# ############?????????? | | ????????????????????????#= #????????????????????? | | ????????????????????????#%! #????????????????????? | +----------------------------------------------------+ Best States ------------- Heat Dissipation 34 Energy Generation 10 Energy Capacity 250 Matter Stores 300 Matter Capacity 300 Sight Range 16 Robot Scan Range 14 Terrain Scan Density 10 Armor Coverage 150 Evasion (%) 64 Offensive Hacking 10 Defensive Hacking 30 Item Schematics ----------------- None Robot Schematics ------------------ None Fabricated ------------ Nothing Repaired ---------- Nothing Alien Tech Used ----------------- None Achievements -------------- None Challenges ------------ None Game ------ Seed MomentumRegenerativeCore Manual? 0 Play Time 00:40:20 Cumulative 107.9 hours Start 2025.08.17 @ 04:43:46 End 2025.08.17 @ 05:30:54 Sessions 1 Manual Loads 0 Difficulty Rogue Special Mode None Game No. 106 Rogue 106 Adventurer 0 Explorer 0 Win Type - Total 1 Types 1/0/0/0/0/0/0/0/0/0 Lore% 57 Gallery% 47 Achievement% 47 Wizard Run 0 Options --------- Layout 0 ASCII 0 Keyboard 0 Movement Mouse Keybinds 0 Fullscreen 2 Font 18/X11 Map View 76x50 Zoom Use 0% Tactical HUD 1 Map Filters NONE Filters NONE Steam 1 RUN: ab35d696-ea30-45eb-990f-b077d4e9d2f1